[Event "*** Titled Tuesday Blitz"]
[Site "Chess.com"]
[Date "2021.02.16"]
[Round "9"]
[White "lachesisQ"]
[Black "amintabatabaei"]
[Result "1-0"]
[WhiteElo "3055"]
[BlackElo "2922"]
[TimeControl "180+1"]
[EndTime "11:49:51 PST"]
[Termination "lachesisQ won by resignation"]

1. d4 {[%clk 0:03:00.9]} 1... Nf6 {[%clk 0:02:57.7]} 2. c4 {[%clk 0:03:01.3]}
2... e6 {[%clk 0:02:54.6]} 3. Nc3 {[%clk 0:03:01.8]} 3... Bb4 {[%clk 0:02:54.9]}
4. f3 {[%clk 0:03:00.9]} 4... c5 {[%clk 0:02:47.6]} 5. d5 {[%clk 0:02:59.6]}
5... b5 {[%clk 0:02:47.5]} 6. e4 {[%clk 0:02:44.7]} 6... d6 {[%clk 0:02:45.6]}
7. Bd2 {[%clk 0:02:43.6]} 7... a6 {[%clk 0:02:42.8]} 8. dxe6 {[%clk 0:02:37.6]}
8... Bxe6 {[%clk 0:02:41.6]} 9. cxb5 {[%clk 0:02:37.7]} 9... O-O {[%clk
0:02:40.4]} 10. a3 {[%clk 0:02:33.6]} 10... Ba5 {[%clk 0:02:37.4]} 11. Nge2
{[%clk 0:02:29.1]} 11... axb5 {[%clk 0:02:29.9]} 12. Nf4 {[%clk 0:02:28.9]}
12... Bc4 {[%clk 0:02:24]} 13. Bxc4 {[%clk 0:02:28]} 13... bxc4 {[%clk
0:02:24.9]} 14. O-O {[%clk 0:02:28.4]} 14... Nc6 {[%clk 0:02:25.4]} 15. Nce2
{[%clk 0:02:17.6]} 15... Rb8 {[%clk 0:02:01.4]} 16. Bc3 {[%clk 0:02:06.2]} 16...
Bxc3 {[%clk 0:01:58.7]} 17. bxc3 {[%clk 0:02:07.1]} 17... Ne5 {[%clk 0:01:55.8]}
18. Qd2 {[%clk 0:02:05.2]} 18... Rb6 {[%clk 0:01:42.9]} 19. Rfb1 {[%clk
0:01:59.2]} 19... Qc7 {[%clk 0:01:41]} 20. Rxb6 {[%clk 0:01:57.8]} 20... Qxb6
{[%clk 0:01:41.9]} 21. a4 {[%clk 0:01:57.6]} 21... Ra8 {[%clk 0:01:40.3]} 22. h4
{[%clk 0:01:53.6]} 22... h6 {[%clk 0:01:34.6]} 23. Ng3 {[%clk 0:01:51.8]} 23...
Nd3 {[%clk 0:01:02.2]} 24. Nxd3 {[%clk 0:01:50.4]} 24... cxd3 {[%clk 0:01:03.1]}
25. Qxd3 {[%clk 0:01:51.3]} 25... d5 {[%clk 0:00:55.3]} 26. Kh1 {[%clk
0:01:37.8]} 26... c4 {[%clk 0:00:53.3]} 27. Qe2 {[%clk 0:01:37.3]} 27... dxe4
{[%clk 0:00:51.6]} 28. Nxe4 {[%clk 0:01:36.9]} 28... Nxe4 {[%clk 0:00:39.7]} 29.
Qxe4 {[%clk 0:01:37.8]} 29... Rc8 {[%clk 0:00:40.5]} 30. Rb1 {[%clk 0:01:29.8]}
30... Qa5 {[%clk 0:00:40.6]} 31. Rb4 {[%clk 0:01:29.1]} 31... Qc5 {[%clk
0:00:40.9]} 32. Rb7 {[%clk 0:01:24.6]} 32... Rd8 {[%clk 0:00:37.3]} 33. Kh2
{[%clk 0:01:17.3]} 33... Qd6+ {[%clk 0:00:35.1]} 34. Kh3 {[%clk 0:01:15.2]}
34... Qf6 {[%clk 0:00:33]} 35. Qxc4 {[%clk 0:01:12.6]} 35... Rd1 {[%clk
0:00:21]} 36. Rb8+ {[%clk 0:01:12]} 36... Kh7 {[%clk 0:00:21.6]} 37. Qe4+ {[%clk
0:01:12.5]} 37... g6 {[%clk 0:00:22.3]} 38. Rb1 {[%clk 0:01:13.1]} 38... Rxb1
{[%clk 0:00:16.1]} 39. Qxb1 {[%clk 0:01:11.8]} 39... Qxc3 {[%clk 0:00:17]} 40.
Qa2 {[%clk 0:01:09.9]} 40... Qc8+ {[%clk 0:00:15.8]} 41. Kh2 {[%clk 0:01:09.1]}
41... Qc7+ {[%clk 0:00:15.9]} 42. g3 {[%clk 0:01:09.1]} 42... Qb7 {[%clk
0:00:16.5]} 43. Kg2 {[%clk 0:01:07.3]} 43... Kg8 {[%clk 0:00:14.9]} 44. a5
{[%clk 0:01:07.1]} 44... Qa6 {[%clk 0:00:15.7]} 45. Qd2 {[%clk 0:01:05.5]} 45...
h5 {[%clk 0:00:14.7]} 46. Kf2 {[%clk 0:01:02.1]} 46... Qa7+ {[%clk 0:00:14.3]}
47. Kg2 {[%clk 0:01:02]} 47... Qa6 {[%clk 0:00:14.7]} 48. Qd8+ {[%clk 0:01:02]}
48... Kg7 {[%clk 0:00:14.4]} 49. Kf2 {[%clk 0:01:02.5]} 49... Qc4 {[%clk
0:00:13.2]} 50. Qd2 {[%clk 0:01:01.3]} 50... Qa6 {[%clk 0:00:13.2]} 51. Qd4+
{[%clk 0:01:00.3]} 51... Kg8 {[%clk 0:00:13.1]} 52. Qd8+ {[%clk 0:00:57.5]}
52... Kg7 {[%clk 0:00:13.1]} 53. Ke3 {[%clk 0:00:57.6]} 53... Qb5 {[%clk
0:00:09.6]} 54. Qd4+ {[%clk 0:00:56.8]} 54... Kg8 {[%clk 0:00:10.2]} 55. Qc3
{[%clk 0:00:56.2]} 55... Kh7 {[%clk 0:00:07.9]} 56. Kd2 {[%clk 0:00:52.3]} 56...
Qd5+ {[%clk 0:00:06.7]} 57. Kc1 {[%clk 0:00:51.9]} 57... Qb5 {[%clk 0:00:06.3]}
58. g4 {[%clk 0:00:51.9]} 58... Qf1+ {[%clk 0:00:05.6]} 59. Kb2 {[%clk
0:00:51.3]} 59... Qb5+ {[%clk 0:00:06.1]} 60. Ka3 {[%clk 0:00:51]} 60... hxg4
{[%clk 0:00:06.5]} 61. fxg4 {[%clk 0:00:51.9]} 61... Qe2 {[%clk 0:00:04.1]} 62.
Qb3 {[%clk 0:00:47.9]} 62... Kg8 {[%clk 0:00:03.6]} 63. Qb8+ {[%clk 0:00:47.4]}
63... Kh7 {[%clk 0:00:03.7]} 64. Qb3 {[%clk 0:00:47]} 64... Kg8 {[%clk
0:00:03.3]} 65. g5 {[%clk 0:00:46.8]} 65... Qa6 {[%clk 0:00:03]} 66. Qd5 {[%clk
0:00:43.8]} 66... Qf1 {[%clk 0:00:02.3]} 67. Kb4 {[%clk 0:00:43.3]} 67... Qb1+
{[%clk 0:00:02.2]} 68. Kc5 {[%clk 0:00:42.9]} 68... Qc1+ {[%clk 0:00:02.4]} 69.
Kd6 {[%clk 0:00:42.8]} 69... Qf4+ {[%clk 0:00:02.4]} 70. Kc6 {[%clk 0:00:42.6]}
70... Qc1+ {[%clk 0:00:02.5]} 71. Qc5 {[%clk 0:00:42.4]} 71... Qh1+ {[%clk
0:00:02.3]} 72. Kc7 {[%clk 0:00:42.3]} 72... Qa8 {[%clk 0:00:03]} 73. Qb6 {[%clk
0:00:40.2]} 73... Qe4 {[%clk 0:00:02.1]} 74. a6 {[%clk 0:00:39.6]} 74... Qe7+
{[%clk 0:00:02.5]} 75. Kb8 {[%clk 0:00:38.5]} 75... Qe8+ {[%clk 0:00:03]} 76.
Kb7 {[%clk 0:00:38.4]} 76... Qd7+ {[%clk 0:00:03.5]} 77. Qc7 {[%clk 0:00:36.5]}
77... Qd5+ {[%clk 0:00:03.9]} 78. Kb8 {[%clk 0:00:32.9]} 78... Qb5+ {[%clk
0:00:04.1]} 79. Qb7 {[%clk 0:00:32.5]} 79... Qe8+ {[%clk 0:00:04.6]} 80. Qc8
{[%clk 0:00:32.1]} 1-0

[Event "*** Titled Tuesday Blitz"]
[Site "Chess.com"]
[Date "2021.02.16"]
[Round "9"]
[White "VFernandezB"]
[Black "Ranindu2003"]
[Result "1-0"]
[WhiteElo "2450"]
[BlackElo "2566"]
[TimeControl "180+1"]
[EndTime "11:49:55 PST"]
[Termination "VFernandezB won on time"]

1. e4 {[%clk 0:03:00.9]} 1... c5 {[%clk 0:02:59.4]} 2. Nf3 {[%clk 0:02:50.4]}
2... d6 {[%clk 0:02:59.5]} 3. d4 {[%clk 0:02:50.4]} 3... cxd4 {[%clk 0:03:00.4]}
4. Nxd4 {[%clk 0:02:50.7]} 4... Nf6 {[%clk 0:03:01]} 5. Nc3 {[%clk 0:02:50.1]}
5... a6 {[%clk 0:03:01.7]} 6. Bg5 {[%clk 0:02:48.6]} 6... e6 {[%clk 0:03:01.1]}
7. f4 {[%clk 0:02:47.4]} 7... Nbd7 {[%clk 0:03:01]} 8. Qe2 {[%clk 0:02:45.5]}
8... Qc7 {[%clk 0:03:00]} 9. O-O-O {[%clk 0:02:41.9]} 9... Be7 {[%clk
0:02:59.7]} 10. g3 {[%clk 0:02:42.1]} 10... b5 {[%clk 0:02:59.4]} 11. Bg2 {[%clk
0:02:41.9]} 11... Bb7 {[%clk 0:02:59.6]} 12. Rhe1 {[%clk 0:02:40.3]} 12... h6
{[%clk 0:02:38.7]} 13. Bh4 {[%clk 0:02:37.1]} 13... Rc8 {[%clk 0:02:21.3]} 14.
e5 {[%clk 0:02:29.9]} 14... dxe5 {[%clk 0:02:13.5]} 15. Bxb7 {[%clk 0:02:26.1]}
15... Qxb7 {[%clk 0:02:11.1]} 16. fxe5 {[%clk 0:02:26.6]} 16... Ng8 {[%clk
0:02:06]} 17. Bxe7 {[%clk 0:02:24.5]} 17... Nxe7 {[%clk 0:02:06.9]} 18. Ne4
{[%clk 0:02:23.7]} 18... O-O {[%clk 0:01:58.2]} 19. Nd6 {[%clk 0:02:23.1]} 19...
Qc7 {[%clk 0:01:58.9]} 20. Nxc8 {[%clk 0:02:22.9]} 20... Rxc8 {[%clk 0:01:59.8]}
21. Kb1 {[%clk 0:02:20.9]} 21... Nd5 {[%clk 0:01:58.2]} 22. Nb3 {[%clk
0:02:08.8]} 22... N7b6 {[%clk 0:01:55.8]} 23. h4 {[%clk 0:01:54.9]} 23... Nc4
{[%clk 0:01:46.1]} 24. Rd3 {[%clk 0:01:35.5]} 24... a5 {[%clk 0:01:43]} 25. Nd4
{[%clk 0:01:27.5]} 25... Qc5 {[%clk 0:01:40.9]} 26. Nb3 {[%clk 0:01:22.8]} 26...
Qb6 {[%clk 0:01:35.3]} 27. Rxd5 {[%clk 0:01:06.1]} 27... exd5 {[%clk 0:01:33.1]}
28. e6 {[%clk 0:01:06.4]} 28... fxe6 {[%clk 0:01:07.8]} 29. Qxe6+ {[%clk
0:00:44.2]} 29... Qxe6 {[%clk 0:01:08.7]} 30. Rxe6 {[%clk 0:00:44.2]} 30... a4
{[%clk 0:01:00.4]} 31. Nd4 {[%clk 0:00:43.9]} 31... b4 {[%clk 0:01:00.7]} 32. b3
{[%clk 0:00:40.2]} 32... Nd2+ {[%clk 0:00:53.5]} 33. Kc1 {[%clk 0:00:35.5]}
33... Ne4 {[%clk 0:00:48.3]} 34. bxa4 {[%clk 0:00:35.1]} 34... Nc3 {[%clk
0:00:48]} 35. a5 {[%clk 0:00:33.6]} 35... Nxa2+ {[%clk 0:00:40.3]} 36. Kb2
{[%clk 0:00:33.8]} 36... Nc3 {[%clk 0:00:41]} 37. a6 {[%clk 0:00:31.3]} 37...
Na4+ {[%clk 0:00:37.9]} 38. Ka2 {[%clk 0:00:26.6]} 38... Nc5 {[%clk 0:00:30.8]}
39. Rd6 {[%clk 0:00:23.5]} 39... Ra8 {[%clk 0:00:30.9]} 40. Rxd5 {[%clk
0:00:22.2]} 40... Rxa6+ {[%clk 0:00:30.3]} 41. Kb2 {[%clk 0:00:21.5]} 41... Na4+
{[%clk 0:00:26]} 42. Kb3 {[%clk 0:00:21.3]} 42... Nc3 {[%clk 0:00:26.1]} 43.
Rd8+ {[%clk 0:00:21.2]} 43... Kh7 {[%clk 0:00:25.9]} 44. Kxb4 {[%clk 0:00:21.7]}
44... Ne4 {[%clk 0:00:26.8]} 45. g4 {[%clk 0:00:19.5]} 45... Rb6+ {[%clk
0:00:25.7]} 46. Kc4 {[%clk 0:00:18.7]} 46... Rb2 {[%clk 0:00:23.9]} 47. Kd3
{[%clk 0:00:18]} 47... Nc5+ {[%clk 0:00:23.3]} 48. Kc3 {[%clk 0:00:17.5]} 48...
Na4+ {[%clk 0:00:23.7]} 49. Kd2 {[%clk 0:00:14.9]} 49... Nc5 {[%clk 0:00:24]}
50. Nf5 {[%clk 0:00:14]} 50... Rb4 {[%clk 0:00:20]} 51. Rd4 {[%clk 0:00:12.6]}
51... Rb6 {[%clk 0:00:17.7]} 52. Rd5 {[%clk 0:00:11.9]} 52... Ne4+ {[%clk
0:00:17.4]} 53. Ke3 {[%clk 0:00:11.6]} 53... Nf6 {[%clk 0:00:18.3]} 54. Rd4
{[%clk 0:00:10.9]} 54... Rc6 {[%clk 0:00:19]} 55. c4 {[%clk 0:00:10.4]} 55...
Rc5 {[%clk 0:00:19.6]} 56. Kf4 {[%clk 0:00:09.9]} 56... Kg6 {[%clk 0:00:16.6]}
57. h5+ {[%clk 0:00:09.9]} 57... Kf7 {[%clk 0:00:17.1]} 58. Ne3 {[%clk
0:00:09.6]} 58... Ke6 {[%clk 0:00:16.9]} 59. Rd8 {[%clk 0:00:06.9]} 59... Ke7
{[%clk 0:00:13.8]} 60. Rd4 {[%clk 0:00:06.4]} 60... Ke6 {[%clk 0:00:14.3]} 61.
Nd5 {[%clk 0:00:06.1]} 61... Nd7 {[%clk 0:00:12.8]} 62. Re4+ {[%clk 0:00:06]}
62... Kd6 {[%clk 0:00:13.4]} 63. Ne7 {[%clk 0:00:05]} 63... Nf6 {[%clk
0:00:12.3]} 64. Nf5+ {[%clk 0:00:04.9]} 64... Kc7 {[%clk 0:00:04.6]} 65. Re7+
{[%clk 0:00:05.1]} 65... Kb6 {[%clk 0:00:04.3]} 66. Rxg7 {[%clk 0:00:06]} 66...
Rxc4+ {[%clk 0:00:04.6]} 67. Ke5 {[%clk 0:00:06.4]} 67... Nxg4+ {[%clk
0:00:04.6]} 68. Kd5 {[%clk 0:00:06.1]} 68... Rc5+ {[%clk 0:00:04.4]} 69. Ke6
{[%clk 0:00:04.7]} 69... Nf2 {[%clk 0:00:02.7]} 70. Rg6 {[%clk 0:00:05]} 70...
Nd3 {[%clk 0:00:01.6]} 71. Rxh6 {[%clk 0:00:04.7]} 71... Nf4+ {[%clk 0:00:02.5]}
72. Kf7+ {[%clk 0:00:04.5]} 72... Kb5 {[%clk 0:00:01]} 73. Nd6+ {[%clk
0:00:04.6]} 1-0

[Event "*** Titled Tuesday Blitz"]
[Site "Chess.com"]
[Date "2021.02.16"]
[Round "9"]
[White "platy3"]
[Black "sara_khm"]
[Result "0-1"]
[WhiteElo "2836"]
[BlackElo "2674"]
[TimeControl "180+1"]
[EndTime "11:50:07 PST"]
[Termination "sara_khm won by resignation"]

1. d4 {[%clk 0:03:00.9]} 1... Nf6 {[%clk 0:02:59.6]} 2. c4 {[%clk 0:02:53.2]}
2... e6 {[%clk 0:02:59.8]} 3. g3 {[%clk 0:02:52.5]} 3... c5 {[%clk 0:02:57.7]}
4. Nf3 {[%clk 0:02:51.2]} 4... cxd4 {[%clk 0:02:56.1]} 5. Nxd4 {[%clk
0:02:52.1]} 5... d5 {[%clk 0:02:56.4]} 6. Bg2 {[%clk 0:02:47.4]} 6... e5 {[%clk
0:02:53.8]} 7. Nf3 {[%clk 0:02:46]} 7... e4 {[%clk 0:02:48.5]} 8. Nd4 {[%clk
0:02:45.6]} 8... dxc4 {[%clk 0:02:48.6]} 9. O-O {[%clk 0:02:44.8]} 9... Bc5
{[%clk 0:02:47.1]} 10. Qa4+ {[%clk 0:02:36.8]} 10... Nbd7 {[%clk 0:02:26]} 11.
Qxc4 {[%clk 0:02:27.7]} 11... O-O {[%clk 0:02:19.5]} 12. Nc3 {[%clk 0:02:17]}
12... Re8 {[%clk 0:02:14.6]} 13. Rd1 {[%clk 0:02:12.8]} 13... a6 {[%clk
0:02:09.2]} 14. Bg5 {[%clk 0:02:05.6]} 14... b5 {[%clk 0:02:06.9]} 15. Qb3
{[%clk 0:02:02.9]} 15... Bb7 {[%clk 0:02:02.5]} 16. Nf5 {[%clk 0:01:57.3]} 16...
Qb6 {[%clk 0:02:00.8]} 17. e3 {[%clk 0:01:43]} 17... Re5 {[%clk 0:01:45.5]} 18.
Bxf6 {[%clk 0:01:28.7]} 18... Nxf6 {[%clk 0:01:40.2]} 19. Nd4 {[%clk 0:01:29.3]}
19... h5 {[%clk 0:01:29.2]} 20. a4 {[%clk 0:01:27.8]} 20... b4 {[%clk
0:01:20.8]} 21. a5 {[%clk 0:01:28.1]} 21... Qa7 {[%clk 0:01:15.1]} 22. Na4
{[%clk 0:01:26.7]} 22... Bf8 {[%clk 0:01:09.1]} 23. Nb6 {[%clk 0:01:21.5]} 23...
Rae8 {[%clk 0:01:08.6]} 24. Rdc1 {[%clk 0:01:08.4]} 24... Bc5 {[%clk 0:01:01]}
25. Rc4 {[%clk 0:00:54.3]} 25... h4 {[%clk 0:00:49.9]} 26. Rac1 {[%clk
0:00:53.7]} 26... Bd6 {[%clk 0:00:44.5]} 27. Nc8 {[%clk 0:00:50.8]} 27... Bxc8
{[%clk 0:00:39.7]} 28. Rxc8 {[%clk 0:00:51.7]} 28... hxg3 {[%clk 0:00:37.2]} 29.
hxg3 {[%clk 0:00:43]} 29... Rxc8 {[%clk 0:00:33]} 30. Rxc8+ {[%clk 0:00:43.9]}
30... Kh7 {[%clk 0:00:33.3]} 31. Nc6 {[%clk 0:00:40.9]} 31... Qd7 {[%clk
0:00:31.8]} 32. Nxe5 {[%clk 0:00:32.5]} 32... Qxc8 {[%clk 0:00:31.7]} 33. Nxf7
{[%clk 0:00:33.1]} 33... Qc1+ {[%clk 0:00:30.3]} 34. Bf1 {[%clk 0:00:33.3]}
34... Bc7 {[%clk 0:00:30.6]} 35. Qc4 {[%clk 0:00:28.9]} 35... Qxc4 {[%clk
0:00:29.7]} 36. Bxc4 {[%clk 0:00:29.8]} 36... Bxa5 {[%clk 0:00:30.1]} 37. Bxa6
{[%clk 0:00:30]} 37... Bc7 {[%clk 0:00:28.5]} 38. Ng5+ {[%clk 0:00:23.8]} 38...
Kg6 {[%clk 0:00:28.8]} 39. Ne6 {[%clk 0:00:21.1]} 39... Be5 {[%clk 0:00:29.1]}
40. b3 {[%clk 0:00:21.3]} 40... Kf5 {[%clk 0:00:25.1]} 41. Bc8 {[%clk
0:00:19.8]} 41... Kg6 {[%clk 0:00:24.2]} 42. Bb7 {[%clk 0:00:09.7]} 42... Bd6
{[%clk 0:00:22.1]} 43. Kf1 {[%clk 0:00:07]} 43... Kh6 {[%clk 0:00:18.8]} 44. Nd4
{[%clk 0:00:05.8]} 44... g6 {[%clk 0:00:17.2]} 45. Kg2 {[%clk 0:00:05.8]} 45...
Be5 {[%clk 0:00:15.9]} 46. Nc6 {[%clk 0:00:05.6]} 46... Bd6 {[%clk 0:00:16.2]}
47. Na5 {[%clk 0:00:05.9]} 47... Kg5 {[%clk 0:00:13.5]} 48. Nc4 {[%clk
0:00:06.3]} 48... Bc7 {[%clk 0:00:13.9]} 49. Nd2 {[%clk 0:00:06.7]} 49... Kf5
{[%clk 0:00:14.4]} 50. Kh3 {[%clk 0:00:06.8]} 50... Be5 {[%clk 0:00:12.1]} 51.
g4+ {[%clk 0:00:06.5]} 51... Ke6 {[%clk 0:00:07.5]} 52. Nxe4 {[%clk 0:00:06.2]}
52... Nxe4 {[%clk 0:00:06.8]} 53. Bxe4 {[%clk 0:00:07.1]} 53... g5 {[%clk
0:00:07.5]} 54. Kg2 {[%clk 0:00:06.7]} 54... Bc3 {[%clk 0:00:08]} 55. Kf3 {[%clk
0:00:06.9]} 55... Ke5 {[%clk 0:00:08.5]} 56. Bb7 {[%clk 0:00:06.2]} 56... Bb2
{[%clk 0:00:09]} 57. Ke2 {[%clk 0:00:05.3]} 57... Bc3 {[%clk 0:00:09.5]} 58. Kd3
{[%clk 0:00:03.9]} 58... Bb2 {[%clk 0:00:09.9]} 59. Bg2 {[%clk 0:00:03.3]} 59...
Bc3 {[%clk 0:00:10.3]} 60. Bf1 {[%clk 0:00:03.3]} 60... Be1 {[%clk 0:00:10.3]}
61. Ke2 {[%clk 0:00:03.7]} 61... Bc3 {[%clk 0:00:10.9]} 62. Kf3 {[%clk
0:00:04.4]} 62... Be1 {[%clk 0:00:10.9]} 63. Kg3 {[%clk 0:00:04.5]} 63... Ke4
{[%clk 0:00:10.6]} 64. Bg2+ {[%clk 0:00:04.9]} 64... Kd3 {[%clk 0:00:10.8]} 65.
Bd5 {[%clk 0:00:03.1]} 65... Ke2 {[%clk 0:00:10.9]} 66. e4 {[%clk 0:00:02.3]}
66... Bxf2+ {[%clk 0:00:10.5]} 67. Kg2 {[%clk 0:00:03]} 67... Bd4 {[%clk
0:00:10.8]} 68. Bc4+ {[%clk 0:00:03.1]} 68... Kd2 {[%clk 0:00:10.2]} 69. Bd5
{[%clk 0:00:04]} 69... Ke3 {[%clk 0:00:10.4]} 70. Kf1 {[%clk 0:00:04.5]} 70...
Kf3 {[%clk 0:00:10.2]} 71. e5+ {[%clk 0:00:04.2]} 71... Kxg4 {[%clk 0:00:10.6]}
72. e6 {[%clk 0:00:05]} 72... Bc5 {[%clk 0:00:11]} 73. Ke2 {[%clk 0:00:05.7]}
73... Kf4 {[%clk 0:00:11.4]} 74. Kd3 {[%clk 0:00:06.5]} 74... g4 {[%clk
0:00:12]} 75. Kc4 {[%clk 0:00:07]} 75... Be7 {[%clk 0:00:12.6]} 76. Kb5 {[%clk
0:00:07.5]} 76... g3 {[%clk 0:00:13.5]} 77. Kc6 {[%clk 0:00:08]} 77... Ke5
{[%clk 0:00:14.4]} 78. Kd7 {[%clk 0:00:01.4]} 78... Kxd5 {[%clk 0:00:14.7]} 79.
Kxe7 {[%clk 0:00:02]} 79... g2 {[%clk 0:00:15.4]} 80. Kd7 {[%clk 0:00:02.7]}
80... g1=Q {[%clk 0:00:15.6]} 81. e7 {[%clk 0:00:03.5]} 81... Qg4+ {[%clk
0:00:15.9]} 82. Kd8 {[%clk 0:00:03.6]} 82... Qg8+ {[%clk 0:00:15]} 83. e8=Q
{[%clk 0:00:03.7]} 83... Qxe8+ {[%clk 0:00:15.4]} 84. Kxe8 {[%clk 0:00:04.6]}
84... Kd4 {[%clk 0:00:16.1]} 0-1

[Event "*** Titled Tuesday Blitz"]
[Site "Chess.com"]
[Date "2021.02.16"]
[Round "9"]
[White "Euge_chess"]
[Black "Ze-Pequeno"]
[Result "0-1"]
[WhiteElo "2108"]
[BlackElo "2281"]
[TimeControl "180+1"]
[EndTime "11:50:09 PST"]
[Termination "Ze-Pequeno won on time"]

1. e4 {[%clk 0:03:00.9]} 1... c5 {[%clk 0:02:58.7]} 2. c3 {[%clk 0:03:00.2]}
2... Nf6 {[%clk 0:02:58.5]} 3. e5 {[%clk 0:02:59.9]} 3... Nd5 {[%clk 0:02:58.4]}
4. g3 {[%clk 0:03:00.4]} 4... d6 {[%clk 0:02:57.2]} 5. exd6 {[%clk 0:03:00.4]}
5... e6 {[%clk 0:02:57.6]} 6. Bg2 {[%clk 0:03:00.1]} 6... Bxd6 {[%clk
0:02:57.3]} 7. Nf3 {[%clk 0:03:00.6]} 7... O-O {[%clk 0:02:56.8]} 8. O-O {[%clk
0:03:01.1]} 8... Nc6 {[%clk 0:02:56.7]} 9. d4 {[%clk 0:03:01.5]} 9... cxd4
{[%clk 0:02:56.8]} 10. Nxd4 {[%clk 0:03:02.2]} 10... Nxd4 {[%clk 0:02:56.5]} 11.
Qxd4 {[%clk 0:03:02.7]} 11... Qc7 {[%clk 0:02:49.9]} 12. Nd2 {[%clk 0:03:01.9]}
12... Bd7 {[%clk 0:02:41.9]} 13. Ne4 {[%clk 0:02:58.9]} 13... Be5 {[%clk
0:02:40.4]} 14. Qd1 {[%clk 0:02:42]} 14... Bb5 {[%clk 0:02:30]} 15. Re1 {[%clk
0:02:40.8]} 15... Rfd8 {[%clk 0:02:29.4]} 16. Bd2 {[%clk 0:02:38.7]} 16... Bc6
{[%clk 0:02:16.5]} 17. Rc1 {[%clk 0:02:29.4]} 17... Nb6 {[%clk 0:02:09.9]} 18.
Qe2 {[%clk 0:02:22.6]} 18... h6 {[%clk 0:01:30.1]} 19. f4 {[%clk 0:02:15.5]}
19... Bd6 {[%clk 0:01:28.9]} 20. Nxd6 {[%clk 0:02:10.9]} 20... Rxd6 {[%clk
0:01:27.5]} 21. Be3 {[%clk 0:02:09.9]} 21... Rad8 {[%clk 0:01:14.2]} 22. Rcd1
{[%clk 0:01:53.6]} 22... Bxg2 {[%clk 0:01:10.6]} 23. Rxd6 {[%clk 0:01:48.3]}
23... Rxd6 {[%clk 0:01:07.6]} 24. Qxg2 {[%clk 0:01:46.4]} 24... Nc4 {[%clk
0:00:50.2]} 25. Bd4 {[%clk 0:01:45.1]} 25... Rd5 {[%clk 0:00:50]} 26. b3 {[%clk
0:01:38.3]} 26... Nd6 {[%clk 0:00:46]} 27. Be5 {[%clk 0:01:23.9]} 27... Qc5+
{[%clk 0:00:36.3]} 28. Bd4 {[%clk 0:01:17.7]} 28... Qc6 {[%clk 0:00:29.3]} 29.
Qe2 {[%clk 0:01:15.4]} 29... Nb5 {[%clk 0:00:26.5]} 30. Qc4 {[%clk 0:00:47.1]}
30... Nxd4 {[%clk 0:00:20.6]} 31. cxd4 {[%clk 0:00:45.8]} 31... Qd7 {[%clk
0:00:19.7]} 32. Rd1 {[%clk 0:00:42.1]} 32... g6 {[%clk 0:00:20.1]} 33. Kf2
{[%clk 0:00:40.8]} 33... h5 {[%clk 0:00:20.2]} 34. Ke3 {[%clk 0:00:39.6]} 34...
Kg7 {[%clk 0:00:20.6]} 35. Rc1 {[%clk 0:00:34.2]} 35... Qe7 {[%clk 0:00:19.1]}
36. Qc7 {[%clk 0:00:29.1]} 36... Rd7 {[%clk 0:00:18.8]} 37. Qe5+ {[%clk
0:00:28.1]} 37... Qf6 {[%clk 0:00:19.2]} 38. Qxf6+ {[%clk 0:00:27.3]} 38... Kxf6
{[%clk 0:00:20.1]} 39. Ke4 {[%clk 0:00:26.8]} 39... a6 {[%clk 0:00:19.7]} 40. h4
{[%clk 0:00:26]} 40... Ke7 {[%clk 0:00:19.3]} 41. Rc5 {[%clk 0:00:25.2]} 41...
Kd6 {[%clk 0:00:18.6]} 42. b4 {[%clk 0:00:21.7]} 42... b6 {[%clk 0:00:17.8]} 43.
Rc8 {[%clk 0:00:19.1]} 43... Rb7 {[%clk 0:00:17.6]} 44. a4 {[%clk 0:00:18]}
44... b5 {[%clk 0:00:13.8]} 45. a5 {[%clk 0:00:17.7]} 45... Rc7 {[%clk
0:00:13.7]} 46. Rxc7 {[%clk 0:00:15]} 46... Kxc7 {[%clk 0:00:14.2]} 47. Ke5
{[%clk 0:00:15.4]} 47... Kd7 {[%clk 0:00:14.7]} 48. Kf6 {[%clk 0:00:15.3]} 48...
Kd6 {[%clk 0:00:15.6]} 49. Kg7 {[%clk 0:00:12.5]} 49... Kd5 {[%clk 0:00:10]} 50.
Kxf7 {[%clk 0:00:12.5]} 50... Kxd4 {[%clk 0:00:10.9]} 51. Kxe6 {[%clk
0:00:09.1]} 51... Kc4 {[%clk 0:00:11.2]} 52. Kf6 {[%clk 0:00:09.7]} 52... Kxb4
{[%clk 0:00:12.1]} 53. Kxg6 {[%clk 0:00:10.6]} 53... Kxa5 {[%clk 0:00:13]} 54.
f5 {[%clk 0:00:11.4]} 54... b4 {[%clk 0:00:13.9]} 55. f6 {[%clk 0:00:12.3]}
55... b3 {[%clk 0:00:14.8]} 56. Kg7 {[%clk 0:00:13]} 56... b2 {[%clk 0:00:15.2]}
57. f7 {[%clk 0:00:13.6]} 57... b1=Q {[%clk 0:00:15]} 58. f8=Q {[%clk
0:00:13.6]} 58... Qb5 {[%clk 0:00:13.8]} 59. Qf6 {[%clk 0:00:12.9]} 59... Kb4
{[%clk 0:00:13.4]} 60. Qg5 {[%clk 0:00:11.9]} 60... a5 {[%clk 0:00:13]} 61. Kh6
{[%clk 0:00:11.1]} 61... a4 {[%clk 0:00:13.1]} 62. Qd2+ {[%clk 0:00:10.1]} 62...
Kb3 {[%clk 0:00:12.9]} 63. Qd1+ {[%clk 0:00:09.4]} 63... Kb2 {[%clk 0:00:13.1]}
64. Qd2+ {[%clk 0:00:09.1]} 64... Kb3 {[%clk 0:00:13.6]} 65. Qe3+ {[%clk
0:00:07.1]} 65... Kc4 {[%clk 0:00:13.1]} 66. Qe2+ {[%clk 0:00:06.4]} 66... Kb4
{[%clk 0:00:13.3]} 67. Qxh5 {[%clk 0:00:05.8]} 67... a3 {[%clk 0:00:13.2]} 68.
Qxb5+ {[%clk 0:00:04.5]} 68... Kxb5 {[%clk 0:00:13.2]} 69. h5 {[%clk 0:00:05.1]}
69... a2 {[%clk 0:00:14.1]} 70. Kg6 {[%clk 0:00:04]} 70... a1=Q {[%clk 0:00:15]}
71. h6 {[%clk 0:00:04.7]} 71... Qh8 {[%clk 0:00:15]} 72. g4 {[%clk 0:00:03.8]}
72... Kc6 {[%clk 0:00:15.5]} 73. g5 {[%clk 0:00:03.8]} 73... Qg8+ {[%clk
0:00:15.2]} 74. Kh5 {[%clk 0:00:03.6]} 74... Kd6 {[%clk 0:00:15.5]} 75. g6
{[%clk 0:00:03.3]} 75... Ke6 {[%clk 0:00:15.8]} 76. Kg4 {[%clk 0:00:04.2]} 76...
Kf6 {[%clk 0:00:15.9]} 77. g7 {[%clk 0:00:03.6]} 77... Kg6 {[%clk 0:00:15.9]}
78. Kh4 {[%clk 0:00:03.2]} 78... Kxh6 {[%clk 0:00:16.2]} 0-1